fUSD/lending_fUSD_20240923
["ID","MTS","AMOUNT","RATE_DAILY","PERIOD"]
[338957429,1727089868936,-536.62,0.00012995,2]
[338957430,1727089868946,-536.62,0.00012995,2]
[338957431,1727089868957,-536.62,0.00012995,2]
[338957432,1727089868968,-536.80201909,0.00012995,2]
[338957433,1727089868981,-979.78,0.00012995,2]
[338957434,1727089868992,-979.78,0.00012995,2]
[338957435,1727089869004,-979.78,0.00012995,2]
[338957436,1727089869014,-979.78,0.00012995,2]
[338957437,1727089869025,-979.89195435,0.00012995,2]
[338957438,1727089869036,-612.97,0.00012995,2]
[338957439,1727089869046,-612.97,0.00012995,2]
[338957440,1727089869055,-612.97,0.00012995,2]
[338957441,1727089869065,-612.97,0.00012995,2]
[338957442,1727089869075,-612.99779008,0.00012995,2]
[338957443,1727089869086,-500.0,0.00012995,2]
[338957444,1727089869097,-500.0,0.00012995,2]
[338957445,1727089869109,-500.0,0.00012995,2]
[338957446,1727089869119,-500.0,0.00012995,2]
[338957447,1727089869130,-500.0,0.00012995,2]
[338957448,1727089869139,-411.18743145,0.00012995,2]
[338957449,1727089869153,-200.0,0.00012995,2]
[338957450,1727089869164,-515.0,0.00012995,2]
[338957451,1727089869174,-515.0,0.00012995,2]
[338957452,1727089869184,-515.0,0.00012995,2]
[338957453,1727089869194,-515.0,0.00012995,2]
[338957454,1727089869204,-515.09699037,0.00012995,2]
[338957455,1727089869215,-624.43,0.00012995,2]
[338957456,1727089869225,-624.43,0.00012995,2]
[338957457,1727089869236,-624.43,0.00012995,2]
[338957458,1727089869246,-624.43,0.00012995,2]
[338957459,1727089869256,-624.4723137,0.00012995,2]
[338957460,1727089869267,-530.8,0.00012995,2]
[338957461,1727089869278,-530.8,0.00012995,2]
[338957462,1727089869288,-530.8,0.00012995,2]
[338957463,1727089869298,-530.8,0.00012995,2]
[338957464,1727089869309,-530.85705058,0.00012995,2]
[338957465,1727089869320,-895.24,0.00012995,2]
[338957466,1727089869331,-895.24,0.00012995,2]
[338957467,1727089869343,-895.24,0.00012995,2]
[338957468,1727089869353,-895.24,0.00012995,2]
[338957469,1727089869364,-895.37405451,0.00012995,2]
[338957470,1727089869374,-500.0,0.00012995,2]
[338957471,1727089869385,-1192.12,0.00012995,2]
[338957472,1727089869398,-1192.12,0.00012995,2]
[338957473,1727089869410,-1192.12,0.00012995,2]
[338957474,1727089869420,-1192.12,0.00012995,2]
[338957475,1727089869431,-1192.20252397,0.00012995,2]
[338957476,1727089869443,-1002.01,0.00012995,2]
[338957477,1727089869453,-1002.01,0.00012995,2]
[338957478,1727089869464,-1002.01,0.00012995,2]
[338957479,1727089869474,-1002.01,0.00012995,2]
[338957480,1727089869484,-1002.04825745,0.00012995,2]
[338957481,1727089869495,-810.2,0.00012995,2]
[338957482,1727089869506,-810.2,0.00012995,2]
[338957483,1727089869517,-810.2,0.00012995,2]
[338957484,1727089869527,-810.2,0.00012995,2]
[338957485,1727089869541,-810.31360179,0.00012995,2]
[338957486,1727089869551,-500.0,0.00012995,2]
[338957487,1727089869561,-500.0,0.00012995,2]
[338957488,1727089869571,-500.0,0.00012995,2]
[338957489,1727089869583,-641.52569019,0.00012995,2]
[338957490,1727089869594,-500.0,0.00012995,2]
[338957491,1727089869604,-1688.58,0.00012995,2]
[338957492,1727089869617,-1688.58,0.00012995,2]
[338957493,1727089869627,-1688.58,0.00012995,2]
[338957494,1727089869638,-1688.58,0.00012995,2]
[338957495,1727089869648,-1688.6771073,0.00012995,2]
[338957496,1727089869658,-281.8815932,0.00012995,2]
[338957497,1727089869669,-941.99,0.00012995,2]
[338957498,1727089869678,-839.9,0.00012995,2]
[338957499,1727089869688,-264.29574,0.00012995,2]
[338957500,1727089869698,-264.29574,0.00012995,2]
[338957501,1727089869708,-3116.47,0.00012995,2]
[338957502,1727089869718,-1717.45,0.00012995,2]
[338957503,1727089869728,-1811.84,0.00012995,2]
[338957504,1727089869738,-10115.12,0.00012995,2]
[338957505,1727089869748,-605.84,0.00012995,2]
[338957506,1727089869759,-2081.9,0.00012995,2]
[338957507,1727089869770,-500.0,0.00012995,2]
[338957508,1727089869781,-151.0,0.00012995,2]
[338957509,1727089869791,-482.24771855,0.00012995,2]
[338957510,1727089869801,-151.0,0.00012995,2]
[338957511,1727089869811,-354.825704,0.00012995,2]
[338957512,1727089869823,-500.0,0.00012995,2]
[338957513,1727089869837,-354.825704,0.00012995,2]
[338957514,1727089869856,-151.0,0.00012995,2]
[338957515,1727089869866,-500.0,0.00012995,2]
[338957516,1727089869875,-151.0,0.00012995,2]
[338957517,1727089869886,-151.0,0.00012995,2]
[338957518,1727089869897,-500.0,0.00012995,2]
[338957519,1727089869908,-2000.0,0.00012995,2]
[338957520,1727089869918,-609.5728444,0.00012995,2]
[338957521,1727089869928,-200.0,0.00012995,2]
[338957522,1727089869948,-151.0,0.00012995,2]
[338957523,1727089869969,-151.0,0.00012995,2]
[338957524,1727089869980,-500.0,0.00012995,2]
[338957525,1727089869990,-2340.85,0.00012995,2]
[338957526,1727089870001,-500.0,0.00012995,2]
[338957527,1727089870011,-1000.0,0.00012996,2]
[338957528,1727089870292,-1000.0,0.00012996,2]
[338957529,1727089870303,-1000.0,0.00012996,2]
[338957530,1727089870314,-1000.0,0.00012996,2]
[338957531,1727089870324,-1037.46707002,0.00012996,2]
[338957532,1727089870335,-334.145,0.00012996,2]
[338957533,1727089870346,-151.0,0.00012996,2]
[338957534,1727089870357,-249.745259,0.00012996,2]
[338957535,1727089870367,-151.0,0.00012996,2]
[338957536,1727089870376,-171.095038,0.00012996,2]
[338957537,1727089870386,-171.095038,0.00012996,2]
[338957538,1727089870395,-222.833212,0.00012996,2]
[338957539,1727089870404,-222.833212,0.00012996,2]
[338957540,1727089870414,-500.0,0.00012996,2]
[338957541,1727089870423,-500.0,0.00012996,2]
[338957542,1727089870432,-1534.34,0.00012996,2]
[338957543,1727089870442,-500.0,0.00012996,2]
[338957544,1727089870452,-500.0,0.00012996,2]
[338957545,1727089870461,-500.0,0.00012996,2]
[338957546,1727089870471,-189.61568619,0.00012996,2]
[338957547,1727089870481,-767.25,0.00012996,2]
[338957548,1727089870490,-213.41,0.00012996,2]
[338957549,1727089870500,-500.0,0.00012996,2]
[338957550,1727089870510,-1082.17,0.00012996,2]
[338957551,1727089870519,-1042.99,0.00012996,2]
[338957552,1727089870530,-265.12514742,0.00012996,2]
[338957553,1727089870544,-500.0,0.00012996,2]
[338957554,1727089870554,-500.0,0.00012996,2]
[338957555,1727089870563,-500.0,0.00012996,2]
[338957556,1727089870573,-500.0,0.00012996,2]
[338957557,1727089870584,-500.0,0.00012996,2]
[338957558,1727089870596,-500.0,0.00012996,2]
[338957559,1727089870606,-500.0,0.00012996,2]
[338957560,1727089870618,-247.85010447,0.00012996,2]
[338957561,1727089870628,-542.77,0.00012996,2]
[338957562,1727089870638,-500.0,0.00012996,2]
[338957563,1727089870648,-1483.18,0.00012996,2]
[338957564,1727089870658,-500.0,0.00012996,2]
[338957565,1727089870670,-439.88296245,0.00012996,2]
[338957566,1727089870680,-500.0,0.00012996,2]
[338957567,1727089870691,-500.0,0.00012996,2]
[338957568,1727089870702,-500.0,0.00012996,2]
[338957569,1727089870712,-3263.86,0.00012996,2]
[338957570,1727089870724,-500.0,0.00012996,2]
[338957571,1727089870734,-500.0,0.00012996,2]
[338957572,1727089870746,-939.79,0.00012996,2]
[338957573,1727089870756,-916.85,0.00012996,2]
[338957574,1727089870766,-500.0,0.00012996,2]
[338957575,1727089870776,-1228.6,0.00012996,2]
[338957576,1727089870786,-556.3,0.00012996,2]
[338957577,1727089870796,-500.0,0.00012996,2]
[338957578,1727089870806,-522.93,0.00012996,2]
[338957579,1727089870816,-500.0,0.00012996,2]
[338957580,1727089870826,-500.0,0.00012996,2]
[338957581,1727089870835,-1098.04,0.00012996,2]
[338957582,1727089870847,-762.79,0.00012996,2]
[338957583,1727089870857,-96.37115535,0.00012996,2]
[338957584,1727089871105,-2051.55884465,0.00012996,2]
[338957585,1727089871115,-614.63,0.00012996,2]
[338957586,1727089871125,-307.38600846,0.00012996,2]
[338957587,1727089871136,-192.61399154,0.00012996,2]
[338957588,1727089871146,-151.0,0.00012996,2]
[338957589,1727089871155,-1187.34,0.00012996,2]
[338957590,1727089871165,-189.79994315,0.00012996,2]
[338957591,1727089871176,-247.70524512,0.00012996,2]
[338957592,1727089871186,-185.206804,0.00012996,2]
[338957593,1727089871196,-26.10258971,0.00012996,2]
[338957594,1727089871207,-159.10421429,0.00012996,2]
[338957595,1727089871216,-628.32,0.00012996,2]
[338957596,1727089871226,-151.0,0.00012996,2]
[338957597,1727089871236,-730.69,0.00012996,2]
[338957598,1727089871245,-151.0,0.00012996,2]
[338957599,1727089871255,-326.05938968,0.00012996,2]
[338957600,1727089871267,-173.94061032,0.00012996,2]
[338957601,1727089871276,-500.0,0.00012996,2]
[338957602,1727089871286,-286.56914,0.00012996,2]
[338957603,1727089871295,-779.72,0.00012996,2]
[338957604,1727089871305,-500.0,0.00012996,2]
[338957605,1727089871314,-500.0,0.00012996,2]
[338957606,1727089871324,-688.12,0.00012996,2]
[338957607,1727089871333,-2246.12,0.00012996,2]
[338957608,1727089871343,-300.32197808,0.00012996,2]
[338957609,1727089871354,-2322.49802192,0.00012996,2]
[338957610,1727089871364,-500.0,0.00012996,2]
[338957611,1727089871374,-500.0,0.00012996,2]
[338957612,1727089871383,-500.0,0.00012996,2]
[338957613,1727089871393,-1002.320968,0.00012996,2]
[338957614,1727089871402,-500.0,0.00012996,2]
[338957615,1727089871411,-1002.320968,0.00012996,2]
[338957616,1727089871421,-1032.78,0.00012996,2]
[338957617,1727089871430,-500.0,0.00012996,2]
[338957618,1727089871440,-500.0,0.00012996,2]
[338957619,1727089871449,-500.0,0.00012996,2]
[338957620,1727089871459,-667.65,0.00012996,2]
[338957621,1727089871468,-500.0,0.00012996,2]
[338957622,1727089871478,-620.61,0.00012996,2]
[338957623,1727089871487,-500.0,0.00012996,2]
[338957624,1727089871497,-249.67451542,0.00012996,2]
[338957625,1727089871510,-433.27548458,0.00012996,2]
[338957626,1727089871519,-500.0,0.00012996,2]
[338957627,1727089871530,-500.0,0.00012996,2]
[338957628,1727089871544,-500.0,0.00012996,2]
[338957629,1727089871553,-151.0,0.00012997,2]
[338957630,1727089871563,-263.705162,0.00012997,2]
[338957631,1727089871574,-263.705171,0.00012997,2]
[338957632,1727089871586,-151.0,0.00012997,2]
[338957633,1727089871595,-151.0,0.00012997,2]
[338957634,1727089871605,-151.0,0.00012997,2]
[338957635,1727089871616,-151.0,0.00012997,2]
[338957636,1727089871626,-449.081118,0.00012997,2]
[338957637,1727089871635,-449.081118,0.00012997,2]
[338957638,1727089871645,-471.391337,0.00012998,2]
[338957639,1727089871655,-471.391337,0.00012998,2]
[338957640,1727089871665,-151.0,0.00012998,2]
[338957641,1727089871674,-151.21044,0.00012998,2]
[338957642,1727089871683,-151.21044,0.00012998,2]
[338957643,1727089871693,-328.763083,0.00012998,2]
[338957644,1727089871702,-328.763083,0.00012998,2]
[338957645,1727089871712,-475.98276,0.00012998,2]
[338957646,1727089871721,-475.98276,0.00012998,2]
[338957647,1727089871731,-151.0,0.00012998,2]
[338957648,1727089871741,-151.0,0.00012998,2]
[338957649,1727089871750,-151.0,0.00012998,2]
[338957650,1727089871759,-151.0,0.00012998,2]
[338957651,1727089871769,-274.759995,0.00012998,2]
[338957652,1727089871778,-151.0,0.00012998,2]
[338957653,1727089871788,-151.0,0.00012998,2]
[338957654,1727089871798,-151.0,0.00012998,2]
[338957655,1727089871807,-151.0,0.00012998,2]
[338957656,1727089871816,-500.0,0.00012998,2]
[338957657,1727089871826,-152.85454374,0.00012998,2]
[338957658,1727089871835,-151.0,0.00012998,2]
[338957659,1727089871846,-500.0,0.00012998,2]
[338957660,1727089871855,-1534.34,0.00012998,2]
[338957661,1727089871864,-500.0,0.00012998,2]
[338957662,1727089871874,-500.0,0.00012998,2]
[338957663,1727089871884,-151.0,0.00012998,2]
[338957664,1727089871894,-500.0,0.00012998,2]
[338957665,1727089871904,-576.15,0.00012998,2]
[338957666,1727089871913,-767.25,0.00012998,2]
[338957667,1727089871923,-500.0,0.00012998,2]
[338957668,1727089871932,-1082.17,0.00012998,2]
[338957669,1727089871943,-1042.99,0.00012998,2]
[338957670,1727089871953,-342.17,0.00012998,2]
[338957671,1727089871963,-171.44,0.00012998,2]
[338957672,1727089871973,-500.0,0.00012998,2]
[338957673,1727089871982,-500.0,0.00012998,2]
[338957674,1727089871992,-500.0,0.00012998,2]
[338957675,1727089872002,-500.0,0.00012998,2]
[338957676,1727089872012,-500.0,0.00012998,2]
[338957677,1727089872022,-500.0,0.00012998,2]
[338957678,1727089872031,-1483.18,0.00012998,2]
[338957679,1727089872041,-500.0,0.00012998,2]
[338957680,1727089872051,-354.32,0.00012998,2]
[338957681,1727089872061,-501.29633662,0.00012998,2]
[338957682,1727089872070,-500.0,0.00012998,2]
[338957683,1727089872080,-151.0,0.00012998,2]
[338957684,1727089872091,-500.0,0.00012998,2]
[338957685,1727089872101,-3263.86,0.00012998,2]
[338957686,1727089872111,-500.0,0.00012998,2]
[338957687,1727089872121,-500.0,0.00012998,2]
[338957688,1727089872131,-939.79,0.00012998,2]
[338957689,1727089872141,-916.85,0.00012998,2]
[338957690,1727089872151,-500.0,0.00012998,2]
[338957691,1727089872161,-1228.6,0.00012998,2]
[338957692,1727089872170,-500.0,0.00012998,2]
[338957693,1727089872180,-522.93,0.00012998,2]
[338957694,1727089872190,-428.444569,0.00012998,2]
[338957695,1727089872199,-151.0,0.00012998,2]
[338957696,1727089872209,-428.444569,0.00012998,2]
[338957697,1727089872218,-318.63370578,0.00012998,2]
[338957698,1727089872228,-500.0,0.00012998,2]
[338957699,1727089872237,-1098.04,0.00012998,2]
[338957700,1727089872247,-727.807872,0.00012998,2]
[338957701,1727089872255,-727.807872,0.00012998,2]
[338957702,1727089872265,-762.79,0.00012998,2]
[338957703,1727089872275,-3000.0,0.00012998,2]
[338957704,1727089872285,-3000.0,0.00012998,2]
[338957705,1727089872294,-500.0,0.00012998,2]
[338957706,1727089872303,-459.643158,0.00012998,2]
[338957707,1727089872312,-459.643158,0.00012998,2]
[338957708,1727089872322,-988.1,0.00012998,2]
[338957709,1727089872331,-988.1,0.00012998,2]
[338957710,1727089872341,-2147.93,0.00012998,2]
[338957711,1727089872350,-614.63,0.00012998,2]
[338957712,1727089872359,-151.0,0.00012998,2]
[338957713,1727089872369,-1746.95,0.00012998,2]
[338957714,1727089872379,-1746.95,0.00012998,2]
[338957715,1727089872388,-1187.34,0.00012998,2]
[338957716,1727089872398,-500.0,0.00012998,2]
[338957717,1727089872407,-500.0,0.00012998,2]
[338957718,1727089872416,-246.62160515,0.00012998,2]
[338957719,1727089872425,-151.0,0.00012998,2]
[338957720,1727089872434,-628.32,0.00012998,2]
[338957721,1727089872444,-1542.18,0.00012998,2]
[338957722,1727089872453,-1542.18,0.00012998,2]
[338957723,1727089872463,-1542.18,0.00012998,2]
[338957724,1727089872472,-500.0,0.00012998,2]
[338957725,1727089872482,-4081.23,0.00012998,2]
[338957726,1727089872491,-4081.23,0.00012998,2]
[338957727,1727089872501,-633.41,0.00012998,2]
[338957728,1727089872511,-730.69,0.00012998,2]
[338957729,1727089872521,-633.41,0.00012998,2]
[338957730,1727089872531,-633.41,0.00012998,2]
[338957731,1727089872542,-500.0,0.00012998,2]
[338957732,1727089872556,-1128.122441,0.00012998,2]
[338957733,1727089872613,-500.0,0.00012998,2]
[338957734,1727089872624,-2354.99,0.00012998,2]
[338957735,1727089872633,-2354.99,0.00012998,2]
[338957736,1727089872643,-2354.99,0.00012998,2]
[338957737,1727089872652,-1128.122441,0.00012998,2]
[338957738,1727089872662,-779.72,0.00012998,2]
[338957739,1727089872671,-151.0,0.00012998,2]
[338957740,1727089872680,-941.99,0.00012998,2]
[338957741,1727089872690,-941.99,0.00012998,2]
[338957742,1727089872699,-941.99,0.00012998,2]
[338957743,1727089872709,-941.99,0.00012998,2]
[338957744,1727089872718,-500.0,0.00012998,2]
[338957745,1727089872727,-839.9,0.00012998,2]
[338957746,1727089872736,-839.9,0.00012998,2]
[338957747,1727089872746,-839.9,0.00012998,2]
[338957748,1727089872757,-500.0,0.00012998,2]
[338957749,1727089872767,-839.9,0.00012998,2]
[338957750,1727089872776,-688.12,0.00012998,2]
[338957751,1727089872786,-151.0,0.00012998,2]
[338957752,1727089872796,-3116.47,0.00012998,2]
[338957753,1727089872806,-3116.47,0.00012998,2]
[338957754,1727089872816,-3116.47,0.00012998,2]
[338957755,1727089872826,-3116.47,0.00012998,2]
[338957756,1727089872836,-2246.12,0.00012998,2]
[338957757,1727089872847,-1717.45,0.00012998,2]
[338957758,1727089872857,-1717.45,0.00012998,2]
[338957759,1727089872866,-1717.45,0.00012998,2]
[338957760,1727089872876,-1717.45,0.00012998,2]
[338957761,1727089872886,-1811.84,0.00012998,2]
[338957762,1727089872897,-1811.84,0.00012998,2]
[338957763,1727089872909,-1811.84,0.00012998,2]
[338957764,1727089872920,-1811.84,0.00012998,2]
[338957765,1727089872929,-586.381781,0.00012998,2]
[338957766,1727089872939,-2622.82,0.00012998,2]
[338957767,1727089872949,-1572.36,0.00012998,2]
[338957768,1727089872959,-586.381781,0.00012998,2]
[338957769,1727089872972,-1572.36,0.00012998,2]
[338957770,1727089872982,-500.0,0.00012998,2]
[338957771,1727089872991,-5715.09247215,0.00012998,2]
[338957772,1727089873006,-4400.02752785,0.00012998,2]
[338957773,1727089873016,-10115.12,0.00012998,2]
[338957774,1727089873028,-5786.87895717,0.00012998,2]
[338957775,1727089873041,-4328.24104283,0.00012998,2]
[338957776,1727089873050,-10115.12,0.00012998,2]
[338957777,1727089873061,-605.84,0.00012998,2]
[338957778,1727089873070,-500.0,0.00012998,2]
[338957779,1727089873079,-2081.9,0.00012998,2]
[338957780,1727089873089,-2081.9,0.00012998,2]
[338957781,1727089873098,-2081.9,0.00012998,2]
[338957782,1727089873108,-2081.9,0.00012998,2]
[338957783,1727089873117,-500.0,0.00012998,2]
[338957784,1727089873128,-2657.57,0.00012998,2]
[338957785,1727089873140,-2657.57,0.00012998,2]
[338957786,1727089873151,-2657.57,0.00012998,2]
[338957787,1727089873162,-500.0,0.00012998,2]
[338957788,1727089873173,-500.0,0.00012998,2]
[338957789,1727089873183,-500.0,0.00012998,2]
[338957790,1727089873192,-500.0,0.00012998,2]
[338957791,1727089873201,-1059.48,0.00012998,2]
[338957792,1727089873211,-1059.48,0.00012998,2]
[338957793,1727089873220,-500.0,0.00012998,2]
[338957794,1727089873229,-1032.78,0.00012998,2]
[338957795,1727089873239,-284.18,0.00012998,2]
[338957796,1727089873248,-540.99724158,0.00012998,2]
[338957797,1727089873258,-500.0,0.00012998,2]
[338957798,1727089873267,-500.0,0.00012998,2]
[338957799,1727089873280,-667.65,0.00012998,2]
[338957800,1727089873289,-500.0,0.00012998,2]
[338957801,1727089873298,-500.0,0.00012998,2]
[338957802,1727089873308,-500.0,0.00012998,2]
[338957803,1727089873318,-500.0,0.00012998,2]
[338957804,1727089873327,-682.95,0.00012998,2]
[338957805,1727089873338,-500.0,0.00012998,2]
[338957806,1727089873348,-500.0,0.00012998,2]
[338957807,1727089873358,-500.0,0.00012998,2]
[338957808,1727089873368,-98.2752992,0.00012998,2]
[338957809,1727089873381,-401.7247008,0.00012998,2]
[338957810,1727089873394,-102.6267213,0.00012998,2]
[338957811,1727089873407,-2238.2232787,0.00012998,2]
[338957812,1727089873417,-2340.85,0.00012998,2]
[338957813,1727089873429,-1299.27779068,0.00012998,2]
[338957814,1727089873444,-1041.57220932,0.00012998,2]
[338957815,1727089873455,-2340.85,0.00012998,2]
[338957816,1727089873465,-928.92,0.00012998,2]
[338957817,1727089873476,-928.92,0.00012998,2]
[338957818,1727089873487,-928.92,0.00012998,2]
[338957819,1727089873497,-928.92,0.00012998,2]
[338957820,1727089873506,-928.92,0.00012998,2]
[338957821,1727089873516,-500.0,0.00012998,2]
[338957822,1727089873526,-500.0,0.00012998,2]
[338957823,1727089873536,-500.0,0.00012998,2]
[338957824,1727089873546,-1355.87,0.00012998,2]
[338957825,1727089873556,-1355.87,0.00012998,2]
[338957826,1727089873570,-1355.87,0.00012998,2]
[338957827,1727089873580,-1355.87,0.00012998,2]
[338957828,1727089873589,-1355.87,0.00012998,2]
[338957829,1727089873599,-500.0,0.00012998,2]
[338957830,1727089873609,-500.0,0.00012999,2]
[338957831,1727089873620,-500.0,0.00012999,2]
[338957832,1727089873629,-500.0,0.00012999,2]
[338957833,1727089873640,-500.0,0.00012999,2]
[338957834,1727089873652,-292.83779068,0.00012999,2]
[338957835,1727089873665,-207.16220932,0.00012999,2]
[338957836,1727089873674,-449.3,0.00012999,2]
[338957837,1727089873684,-3479.27344319,0.00012999,2]
[338957838,1727089873694,-421.6731,0.00012999,2]
[338957839,1727089873705,-334.145,0.00012999,2]
[338957840,1727089873714,-334.145,0.00012999,2]
[338957841,1727089873724,-471.391337,0.00012999,2]
[338957842,1727089873734,-360.14377847,0.00012999,2]
[338957843,1727089873746,-111.24755853,0.00012999,2]
[338957844,1727089873756,-151.0,0.00012999,2]
[338957845,1727089873766,-151.0,0.00012999,2]
[338957846,1727089873776,-5532.35835865,0.00012999,2]
[338957847,1727089873787,-151.0,0.00012999,2]
[338957848,1727089873796,-151.0,0.00012999,2]
[338957849,1727089873806,-249.745259,0.00012999,2]
[338957850,1727089873815,-249.745259,0.00012999,2]
[338957851,1727089873825,-6374.47218631,0.00012999,2]
[338957852,1727089873837,-16182.6549454,0.00012999,2]
[338957853,1727089873847,-151.0,0.00012999,2]
[338957854,1727089873856,-151.0,0.00012999,2]
[338957855,1727089873865,-171.095038,0.00012999,2]
[338957856,1727089873874,-171.095038,0.00012999,2]
[338957857,1727089873884,-171.095038,0.00012999,2]
[338957858,1727089873894,-171.095038,0.00012999,2]
[338957859,1727089873903,-151.0,0.00012999,2]
[338957860,1727089873912,-222.833212,0.00012999,2]
[338957861,1727089873922,-222.833213,0.00012999,2]
[338957862,1727089873932,-151.0,0.00012999,2]
[338957863,1727089873941,-151.0,0.00012999,2]
[338957864,1727089873950,-262.941404,0.00012999,2]
[338957865,1727089873959,-262.941404,0.00012999,2]
[338957866,1727089873968,-262.941404,0.00012999,2]
[338957867,1727089873977,-262.941404,0.00012999,2]
[338957868,1727089873986,-179.077355,0.00012999,2]
[338957869,1727089873995,-179.077355,0.00012999,2]
[338957870,1727089874004,-2271.2067677,0.00012999,2]
[338957871,1727089874014,-500.0,0.00012999,2]
[338957872,1727089874023,-500.0,0.00012999,2]
[338957873,1727089874033,-500.0,0.00012999,2]
[338957874,1727089874043,-500.0,0.00012999,2]
[338957875,1727089874052,-500.0,0.00012999,2]
[338957876,1727089874061,-405.33260741,0.00012999,2]
[338957877,1727089874074,-94.66739259,0.00012999,2]
[338957878,1727089874083,-500.0,0.00012999,2]
[338957879,1727089874093,-500.0,0.00012999,2]
[338957880,1727089874102,-500.0,0.00012999,2]
[338957881,1727089874112,-500.0,0.00012999,2]
[338957882,1727089874122,-504.84,0.00012999,2]
[338957883,1727089874132,-151.0,0.00012999,2]
[338957884,1727089874143,-500.0,0.00012999,2]
[338957885,1727089874155,-500.0,0.00012999,2]
[338957886,1727089874165,-173.18,0.00012999,2]
[338957887,1727089874177,-1534.34,0.00012999,2]
[338957888,1727089874187,-1534.34,0.00012999,2]
[338957889,1727089874196,-1534.34,0.00012999,2]
[338957890,1727089874206,-1534.34,0.00012999,2]
[338957891,1727089874216,-1534.34,0.00012999,2]
[338957892,1727089874226,-1534.34,0.00012999,2]
[338957893,1727089874235,-1534.34,0.00012999,2]
[338957894,1727089874245,-1534.34,0.00012999,2]
[338957895,1727089874254,-1534.34,0.00012999,2]
[338957896,1727089874264,-1534.34,0.00012999,2]
[338957897,1727089874274,-1534.34,0.00012999,2]
[338957898,1727089874285,-1441.82136741,0.00012999,2]
[338957899,1727089874298,-92.51863259,0.00012999,2]
[338957900,1727089874309,-1534.34,0.00012999,2]
[338957901,1727089874318,-376.94453741,0.00012999,2]
[338957902,1727089874329,-1001.06788528,0.00012999,2]
[338957903,1727089874340,-156.32757731,0.00012999,2]
[338957904,1727089874350,-1534.44558769,0.00012999,2]
[338957905,1727089874360,-190.72092321,0.00012999,2]
[338957906,1727089874371,-500.0,0.00012999,2]
[338957907,1727089874382,-500.0,0.00012999,2]
[338957908,1727089874392,-472.45041704,0.00012999,2]
[338957909,1727089874404,-27.54958296,0.00012999,2]
[338957910,1727089874413,-500.0,0.00012999,2]
[338957911,1727089874423,-139.69675111,0.00012999,2]
[338957912,1727089874434,-360.30324889,0.00012999,2]
[338957913,1727089874444,-344.79560449,0.00012999,2]
[338957914,1727089874456,-155.20439551,0.00012999,2]
[338957915,1727089874466,-500.0,0.00012999,2]
[338957916,1727089874476,-198.23631583,0.00012999,2]
[338957917,1727089874486,-151.0,0.00012999,2]
[338957918,1727089874495,-1032.123074,0.00012999,2]
[338957919,1727089874505,-1032.123074,0.00012999,2]
[338957920,1727089874514,-500.0,0.00012999,2]
[338957921,1727089874524,-135.41410476,0.00012999,2]
[338957922,1727089874536,-364.58589524,0.00012999,2]
[338957923,1727089874546,-500.0,0.00012999,2]
[338957924,1727089874555,-287.48204963,0.00012999,2]
[338957925,1727089874570,-212.51795037,0.00012999,2]
[338957926,1727089874580,-210.81535506,0.00012999,2]
[338957927,1727089874590,-99.20840033,0.00012999,2]
[338957928,1727089874603,-412.16595567,0.00012999,2]